Cogmind - Beta 14 @@@ ROGUE MODE // 2024.12.01 @ 16:57:54 Player: certified.possum Result: Destroyed by S-10 Pest with Light Assault Rifle Performance ------------- Evolutions (0) 0 Regions Visited (2) 400 Robots Destroyed (28) 140 Value Destroyed (502) 502 Prototype IDs (0) 0 Alien Tech Used (0) 0 Bonus (0) 0 TOTAL SCORE: 1042 Bonus ------- None Cogmind --------- Core Integrity 0/250 Matter 300/300 Energy 9/100 System Corruption 0% Temperature Cool (0) Movement Core (150) Ox2 Location -10/Subcaves Parts ------- > --- POWER (1) -------- Subdweller Power Source > --- PROPULSION (2) --- (None) > --- UTILITY (2) ------ Signal Interpreter ECM Suite > --- WEAPON (2) ------- Small Laser > --- INVENTORY (5) ---- Subdweller Power Source Small Storage Unit Subdweller Laser Peak State ------------ > --- POWER ------------ Ion Engine > --- PROPULSION ------- Aluminum Leg Aluminum Leg > --- UTILITY ---------- Small Storage Unit Signal Interpreter > --- WEAPON ----------- Medium Laser Grenade Launcher > --- INVENTORY -------- EM Pulse Gun Small Laser [Rating: 7] Favorites ----------- Power Ion Engine Engine Ion Engine Propulsion Aluminum Leg Leg Aluminum Leg Utility Signal Interpreter Device ECM Suite Storage Small Storage Unit Processor Signal Interpreter Weapon Medium Laser Energy Gun Medium Laser Ballistic Gun Light Assault Rifle Launcher Grenade Launcher Build | -11 -10 -10 ------- Run | Yrd Mat Sub Slots Evolved . | . . . Power . | . . . Propulsion . | . . . Utility . | . . . Weapon . | . . . Parts Attached 16 | 6 9 1 Power 3 | 1 1 1 Engine 3 | 1 1 1 Core . | . . . Reactor . | . . . Propulsion 5 | 2 3 . Treads . | . . . Leg 5 | 2 3 . Wheel . | . . . Hover . | . . . Flight . | . . . Utility 3 | 1 2 . Device 1 | . 1 . Storage 1 | 1 . . Processor 1 | . 1 . Hackware . | . . . Protection . | . . . Artifact . | . . . Weapon 5 | 2 3 . Energy Gun 3 | 2 1 . Energy Cannon . | . . . Ballistic Gun 1 | . 1 . Ballistic Cannon . | . . . Launcher 1 | . 1 . Special Weapon . | . . . Impact Weapon . | . . . Slashing Weapon . | . . . Piercing Weapon . | . . . Special Melee Weapon . | . . . Unidentified Prototypes . | . . . Parts Lost 7 | . 5 2 Power 1 | . 1 . Propulsion 3 | . 2 1 Utility . | . . . Weapon 3 | . 2 1 Highest Loss Streak 5 | . 5 2 To Critical Strikes 1 | . 1 . Average Slot Usage (%) 88 | . 92 75 Engine 13 | . 13 14 Leg 21 | . 25 8 Device 10 | . 9 14 Storage 3 | . 4 . Processor 11 | . 10 14 Energy Gun 14 | . 14 14 Ballistic Gun 3 | . . 9 Launcher 8 | . 11 . Peak Build Rating 7 | 6 7 7 Average Rating 6 | 3 6 5 On Entrance 4 | . 6 6 Naked Turns . | . . . Heaviest Build 15 | 13 15 9 Greatest Support 20 | 20 20 10 Greatest Overweight (x) 2 | . 1 2 Average Overweight (x) . | . . . Largest Inventory Capacity 8 | 8 8 5 Average Capacity 5 | 7 5 5 Most Carried 4 | 4 4 3 Average Carried 2 | 1 2 2 Final Capacity 8 | 8 5 5 Final Carried 3 | 1 1 3 Class Distribution -------------------- 76% | Mutant 23% | Scavenger-Mutant Dominant Class ---------------- Mutant | -10/Materials Scavenger-Mutant | -10/Subcaves Resources | -11 -10 -10 ----------- Run | Yrd Mat Sub Matter Collected 514 | 146 114 254 Remotely . | . . . Salvage Created 477 | . 369 108 Parts 54 | . 44 10 Haulers Intercepted 1 | . 1 . Recyclers Shooed 1 | . 1 . Parts Field Recycled . | . . . Retrieved Matter . | . . . Parts Self-Destructed 6 | . . 6 Prevented . | . . . Kills | -11 -10 -10 ------- Run | Yrd Mat Sub Combat Hostiles Destroyed 18 | . 14 4 Guns 7 | . 3 4 AOE 11 | . 11 . Classes Destroyed 7 | . 6 1 Worker 4 | . 4 . Builder 2 | . 2 . Hauler 1 | . 1 . Watcher 3 | . 3 . Swarmer 9 | . 6 3 Grunt 8 | . 8 . Subdweller 1 | . . 1 Best Kill Streak 7 | . 7 3 Combat Bots Only 4 | . 4 3 Max Kills in Single Turn 3 | . 3 1 Gunslinging . | . . . Exploded 2 | . 2 . Melee . | . . . Uniques/NPCs Destroyed . | . . . Combat | -11 -10 -10 -------- Run | Yrd Mat Sub Hostile Shots Fired 112 | . 64 48 Missed 44 | . 23 21 Damage Taken 719 | . 364 355 Core 253 | . 54 199 Absorbed by Shields . | . . . Core Remaining (%) 100 | 100 . . Volleys Fired 58 | . 40 18 Largest 2 | . 2 2 Hottest 90 | . 90 60 Shots Fired 83 | . 59 24 Gun 64 | . 40 24 Cannon . | . . . Launcher 19 | . 19 . Special . | . . . Kinetic 6 | . . 6 Thermal 58 | . 40 18 Explosive 19 | . 19 . Electromagnetic . | . . . Robot Hit Streak 9 | . 5 9 Robot Miss Streak 4 | . 4 2 Penetration Max . | . . . Secondary Targets 1 | . . 1 Max Gunslinging Chain 1 | . . 1 Shots Hit Robots 33 | . 19 14 Core Hits 47 | . 40 7 Critical Kills . | . . . Critical Parts Destroyed . | . . . Critical Strikes 1 | . 1 . Burn 1 | . 1 . Melee Attacks . | . . . Impact . | . . . Slashing . | . . . Piercing . | . . . Sneak Attacks . | . . . Combat Hostiles . | . . . Follow-up Attacks . | . . . Damage Inflicted 1448 | . 1306 142 Guns 356 | . 214 142 Cannons . | . . . Explosions 1090 | . 1090 . Melee . | . . . Ramming 2 | . 2 . Kinetic 34 | . . 34 Thermal 322 | . 214 108 Explosive 1090 | . 1090 . Electromagnetic . | . . . Impact . | . . . Slashing . | . . . Piercing . | . . . Highest Corruption . | . . . Average Corruption . | . . . Corruption Purged . | . . . Corruption Blocked . | . . . Overload Shots . | . . . Overflow Damage . | . . . Projectiles . | . . . Explosions . | . . . Melee . | . . . Knockbacks . | . . . Impact . | . . . Kinetic . | . . . Secondary . | . . . Self-Inflicted Damage 7 | . 7 . Shots 1 | . 1 . Rammed . | . . . Targets Rammed 2 | . 2 . Kicked 2 | . 2 . Crushed . | . . . Highest Temperature 90 | . 90 . Average Temperature 27 | . 27 . Received Heat Transfer 111 | . 39 72 Siege Activations . | . . . Robots Corrupted . | . . . Combat Hostiles . | . . . Parts Fried . | . . . Impact Corruptions . | . . . Robots Melted . | . . . Combat Hostiles . | . . . Parts Melted 1 | . 1 . Heat Transferred 882 | . 632 250 Parts Sabotaged . | . . . Parts Stolen . | . . . Parts Stripped . | . . . Power Chain Reactions . | . . . Alert | -11 -10 -10 ------- Run | Yrd Mat Sub Peak Influence 333 | . 333 . Initial . | . . . Average 213 | . 227 . Maximum Alert Level 1 | . 1 . Low Security (%) 34 | 100 30 . Level 1 65 | . 69 . Level 2 . | . . . Level 3 . | . . . Level 4 . | . . . Level 5 . | . . . High Security . | . . . Max Security . | . . . Squads Dispatched 2 | . 2 . Investigation 1 | . 1 . Extermination . | . . . Reinforcement 1 | . 1 . Assault . | . . . Garrison . | . . . Intercept . | . . . Searches Triggered . | . . . Construction Impeded . | . . . Haulers Reinforced . | . . . Active Scanning Responses . | . . . Cargo Convoy Interrupts . | . . . Stealth | -11 -10 -10 --------- Run | Yrd Mat Sub Distress Signals 1 | . 1 . Communications Jammed . | . . . Distress Signals . | . . . Times Spotted 50 | . 21 29 Peak Tracking Total 8 | . 3 8 Tactical Retreats 3 | . 1 2 Traps | -11 -10 -10 ------- Run | Yrd Mat Sub Traps Triggered 2 | . 2 . Indirectly . | . . . Trap Hack Attempts . | . . . Triggered . | . . . Disarmed . | . . . Reprogrammed . | . . . Reused . | . . . Traps Extracted . | . . . Installed . | . . . Triggered . | . . . Machines | -11 -10 -10 ---------- Run | Yrd Mat Sub Machines Disabled 2 | . 2 . Max in Single Turn 1 | . 1 . Machines Repaired . | . . . Machines Dismantled . | . . . Machines Sabotaged . | . . . Overloaded Fab Kills . | . . . Hacking | -11 -10 -10 --------- Run | Yrd Mat Sub Machines Accessed 2 | . 2 . Terminals . | . . . Fabricators . | . . . Repair Stations . | . . . Recycling Units 2 | . 2 . Scanalyzers . | . . . Garrison Access . | . . . Total Hacks 14 | . 14 . Successful 11 | . 11 . Failed 3 | . 3 . Catastrophic . | . . . Database Lockouts . | . . . Manual . | . . . Terminals . | . . . Fabricators . | . . . Repair Stations . | . . . Recycling Units 14 | . 14 . Scanalyzers . | . . . Garrison Access . | . . . Terminal Hacks . | . . . Fabricator Hacks . | . . . Repair Station Hacks . | . . . Recycling Unit Hacks 11 | . 11 . Recycle Component 3 | . 3 . Process 3 | . 3 . Report Inventory 3 | . 3 . Retrieve Components 2 | . 2 . Scanalyzer . | . . . Garrison Access Hacks . | . . . Unauthorized Hacks . | . . . Terminals . | . . . Fabricators . | . . . Repair Stations . | . . . Recycling Units . | . . . Scanalyzers . | . . . Garrison Access . | . . . Data Cores Recovered . | . . . Used . | . . . Hacking Detections 2 | . 2 . Full Trace Events 2 | . 2 . Feedback Events . | . . . Feedback Blocked . | . . . Robot Schematics Acquired . | . . . Robots Built . | . . . Authchips . | . . . Time . | . . . Total Robot Build Rating . | . . . Part Schematics Acquired . | . . . Parts Built . | . . . Authchips . | . . . Time . | . . . Total Part Build Rating . | . . . Parts Repaired . | . . . Time . | . . . Parts Recycled 3 | . 3 . Recycled Matter 63 | . 63 . Retrieved Matter . | . . . Retrieved Components . | . . . Parts Scanalyzed . | . . . Part Schematics Acquired . | . . . Parts Damaged . | . . . Bothacking | -11 -10 -10 ------------ Run | Yrd Mat Sub Used RIF Installer . | . . . Robots Hacked . | . . . Non-combat . | . . . Combat . | . . . Robot Hacks Applied . | . . . Relay Couplers Released . | . . . Fabnet Peak Effective % . | . . . Robots Rewired . | . . . Allies Hacked . | . . . Hacks Repelled . | . . . Allies | -11 -10 -10 -------- Run | Yrd Mat Sub Total Allies . | . . . Largest Group . | . . . Highest-Rated Group . | . . . Highest-Rated Ally . | . . . Total Orders . | . . . Ally Attacks . | . . . Total Damage . | . . . Kills . | . . . Allies Corrupted . | . . . Allies Melted . | . . . Intel | -11 -10 -10 ------- Run | Yrd Mat Sub Robot Analysis Total . | . . . Derelict Logs Recovered . | . . . Drone Launches . | . . . Drone Recoveries . | . . . Exploration | -11 -10 -10 ------------- Run | Yrd Mat Sub Turns Passed 998 | 47 711 240 Spaces Moved 657 | 37 487 133 Core 58 | 14 . 44 Treads . | . . . Legs 599 | 23 487 89 Wheels . | . . . Hover . | . . . Flight . | . . . Fastest Speed 50 | 50 120 120 Average Speed 120 | 93 120 129 Slowest Speed 190 | 120 190 150 Overloaded Moves . | . . . Propulsion Burnouts . | . . . Robots Hopped . | . . . Cave-ins Triggered . | . . . Exploration Rate (%) 30 | 3 73 15 Regions Visited 2 Branch Regions 1 Pre-discovered Areas . | . . . Known Exits Taken 1 | . 1 . Unknown Exits Taken 1 | 1 . . Scrap Searched . | . . . Spaces Dug . | . . . Terrain Destroyed 96 | . 96 . Melee . | . . . Projectile . | . . . AOE 96 | . 96 . Terrain Rammed . | . . . Walls Destroyed . | . . . Machines Disabled . | . . . Actions | -11 -10 -10 --------- Run | Yrd Mat Sub Total 778 | 49 550 179 Wait 24 | . 3 21 Move 655 | 36 486 133 Hop . | . . . Pick Up 21 | 7 10 4 Fast Attach . | . . . Attach 13 | 6 7 . Detach . | . . . Swap 3 | . 2 1 Drop 2 | . . 2 Fire 58 | . 40 18 Melee . | . . . Ram . | . . . Kick 2 | . 2 . Crush . | . . . Escape Stasis . | . . . Rewire . | . . . Trap . | . . . Miscellaneous . | . . . Route ------- -11/Scrapyard -10/Materials (discovered 5 exits: *Mat x2 / *Min x2 / *Sub) -10/Subcaves (discovered 1 exit: [*Rec]) History --------- Turn | Location | Event 6 | -11/Scrapyard | Discovered new exit (range 15) 48 | -11/Scrapyard | Entered Materials 66 | -10/Materials | Discovered new exit (range 5) 205 | -10/Materials | Discovered new exit (range 15) 226 | -10/Materials | Identified exit to Mines 304 | -10/Materials | Build established: Mutant 328 | -10/Materials | Discovered new exit (range 10) 342 | -10/Materials | Identified exit to Materials 500 | -10/Materials | Discovered exit to Materials (range 5) 692 | -10/Materials | Lost 5 parts (1p2n2w) 749 | -10/Materials | Discovered new exit (range 9) 758 | -10/Materials | Identified exit to Subcaves 759 | -10/Materials | Entered Subcaves 848 | -10/Subcaves | Ambushed by angry Subdweller bent on revenge 906 | -10/Subcaves | Ambushed by swarm of Subdwellers 907 | -10/Subcaves | Ambushed by Subdwellers from Twisted Machinery 918 | -10/Subcaves | Core integrity fell below 50% 960 | -10/Subcaves | Lost 4 allies 971 | -10/Subcaves | Discovered new exit (range 14) 980 | -10/Subcaves | Core integrity fell below 20% 999 | -10/Subcaves | Destroyed by S-10 Pest with Light Assault Rifle Last Messages --------------- 2W-5P6(R) suffers critical hit (Destroy). 2W-5P6(R) knocked back. CL-Z8W(R) emerges from the Twisted Machinery. FF-JRP(h) destroyed. 2W-5P6(R) affixes Scrap Shield Fragment to Scrap Shield. 83-6Q8(R) destroyed. Y3-WIM(R) destroyed. Lgt. Assault Rifle destroyed. Acquired 7 matter. Acquired 5 matter. EXIT=FOUND S-10 Pest destroyed. Sub. Power Source shoots sparks and powers down. S-10 Pest destroyed. Flight Unit fries itself beyond repair. Lgt. Assault Rifle fries itself beyond repair. S-10 Pest destroyed. Lgt. Ion Engine fries itself beyond repair. Lgt. Assault Rifle fries itself beyond repair. Map ----- +----------------------------------------------------+ | ???????????????????????????????????#= ##???????? | | ???????????????????????????????????#%## #????????? | | ???????????????????????????????????#!## #????????? | | ???????????????????????????????????# ## #????????? | | ??????????????????????????????????## #????????? | | ?????????????????????????########## #????????? | | ?????????????????????????# %##% #????????? | | ????????????????????????## #### # #????????? | | ????????????????????????# ##??## %#????????? | | ????????????????????????#%##????# %#????????? | | ????????????????????????# #?????# ### ##????????? | | ????????????????????????# ##????# #?## #????????? | | ????????????????????????#% ##### #??# ##????????? | | ???????????????????####?# #??# #?????????? | | ???????????????????# ## # ##??% ?????????? | | ???????????????????# #?????????? | | ???????????????????## #### # # #?????????? | | ????????????????????## ##??# ##?? ??????????? | | ?????????????????????## ##### #??? ??????????? | | ??????????????????????# ## ##???? ??????????? | | ??????????????????????# #####????????????????? | | ??????????????????????# #????????????????????? | | ??????????????????????# ###??????????????????? | | ??????????????????????## ##?????????????????? | | ???????????????????????## #?????????????????? | | ????????????????????????#@ #?????????????????? | | ????????????????????????## % ##?????????????????? | | ?????????????#" ####### %s#??????????????????? | | ??????????????"" %= #??????????????????? | | ????????????#< #?????????????????? | | ?????????????#"" #????????????????? | | ?????????????#" ######### ##????????????????? | | ?????????????#" ???????????###?????????????????? | | ??????????????"??????????????????????????????????? | | ?????????????????????????????????????????????????? | | ?????????????????????????????????????????????????? | | ?????????????????????????????????????????????????? | | ?????????????????????????????????????????????????? | | ?????????????????????????????????????????????????? | | ?????????????????????????????????????????????????? | | ?????????????????????????????????????????????????? | | ?????????????????????????????????????????????????? | | ?????????????????????????????????????????????????? | | ?????????????????????????????????????????????????? | | ?????????????????????????????????????????????????? | | ?????????????????????????????????????????????????? | | ?????????????????????????????????????????????????? | | ?????????????????????????????????????????????????? | | ?????????????????????????????????????????????????? | | ?????????????????????????????????????????????????? | +----------------------------------------------------+ Best States ------------- Heat Dissipation 25 Energy Generation 15 Energy Capacity 250 Matter Stores 300 Matter Capacity 300 Sight Range 16 Terrain Scan Density 10 ECM Strength 1 Evasion (%) 55 Item Schematics ----------------- None Robot Schematics ------------------ None Fabricated ------------ Nothing Alien Tech Used ----------------- None Achievements -------------- None Challenges ------------ None Game ------ Seed CryofiberBehemothAutocannon Manual? 0 Play Time 00:14:10 Cumulative 2.9 hours Start 2024.12.01 @ 16:46:04 End 2024.12.01 @ 16:57:54 Sessions 1 Manual Loads 0 Difficulty Rogue Special Mode None Game No. 7 Rogue 7 Adventurer 0 Explorer 0 Win Type - Total 0 Types 0/0/0/0/0/0/0/0/0 Lore% 2 Gallery% 8 Achievement% 9 Wizard Run 0 Options --------- Layout 1 ASCII 0 Keyboard 0 Movement Mouse Keybinds 0 Fullscreen 2 Font 32/Tamsyn Map View 50x35 Zoom Use 0% Tactical HUD 0 Map Filters NONE Filters NONE Steam 1 RUN: 8125f8ab-c165-461c-98d8-7736851d844c